fUSD/lending_fUSD_20240606
["ID","MTS","AMOUNT","RATE_DAILY","PERIOD"]
[328671680,1717687845611,-758.9,0.00029862,4]
[328671681,1717687845621,-2000.0,0.00029862,21]
[328671682,1717687845631,-703.53,0.00029862,4]
[328671683,1717687845640,-826.93,0.00029862,4]
[328671684,1717687845649,-500.0,0.00029862,4]
[328671685,1717687845659,-500.0,0.00029862,4]
[328671686,1717687845669,-996.02,0.00029862,4]
[328671687,1717687845681,-500.0,0.00029862,4]
[328671688,1717687845693,-500.0,0.00029863,4]
[328671689,1717687845703,-880.74,0.00029863,4]
[328671690,1717687845712,-500.0,0.00029863,4]
[328671691,1717687845722,-535.68575458,0.00029863,30]
[328671692,1717687845732,-154.69428964,0.00029876,2]
[328671693,1717687845741,-287.96448458,0.00029879,2]
[328671694,1717687845750,-4000.0,0.00029899,2]
[328671695,1717687845760,-6972.402187,0.000299,2]
[328671696,1717687845769,-921.10386557,0.000299,2]
[328671697,1717687845782,-525.72318383,0.000299,2]
[328671698,1717687845797,-196.36,0.00028935,2]
[328671699,1717687845806,-1293.65944124,0.000299,2]
[328671700,1717687845818,-1974.92021585,0.000299,2]
[328671701,1717687845829,-848.60879444,0.000299,2]
[328671702,1717687845840,-271.26559914,0.000299,2]
[328671703,1717687845852,-637.5891004,0.000299,2]
[328671704,1717687845863,-12508.88913794,0.000299,2]
[328671705,1717687845874,-3753.150025,0.000299,2]
[328671706,1717687845885,-528.8,0.000299,2]
[328671707,1717687845897,-3351.22198318,0.000299,2]
[328671708,1717687845908,-4027.47795219,0.000299,2]
[328671709,1717687845919,-4554.66493544,0.000299,2]
[328671710,1717687845933,-4145.5289633,0.000299,2]
[328671711,1717687845947,-5644.91861014,0.000299,2]
[328671712,1717687845958,-53.93662006,0.000299,2]
[328671713,1717687845967,-367.69336575,0.000299,15]
[328671714,1717687845978,-2313.81536795,0.000299,15]
[328671715,1717687845989,-1357.05080301,0.000299,15]
[328671716,1717687845999,-287.96448458,0.000299,2]
[328671717,1717687846008,-354.0,0.000299,2]
[328671718,1717687846020,-1000.0,0.000299,2]
[328671719,1717687846030,-155.96123981,0.000299,7]
[328671720,1717687846039,-155.96123981,0.000299,7]
[328671721,1717687846049,-155.96123981,0.000299,7]
[328671722,1717687846058,-155.96123981,0.000299,7]
[328671723,1717687846067,-155.96123981,0.000299,7]
[328671724,1717687846077,-155.96123981,0.000299,7]
[328671725,1717687846086,-155.96123981,0.000299,7]
[328671726,1717687846095,-155.96123981,0.000299,7]
[328671727,1717687846105,-155.96123981,0.000299,7]
[328671728,1717687846114,-155.96123981,0.000299,7]
[328671729,1717687846123,-155.96123981,0.000299,7]
[328671731,1717687846132,-224.0,0.000299,2]
[328671733,1717687846142,-155.96123981,0.000299,7]
[328671735,1717687846151,-155.96123981,0.000299,7]
[328671737,1717687846161,-155.96123981,0.000299,7]
[328671739,1717687846170,-155.96123981,0.000299,7]
[328671740,1717687846180,-155.96123981,0.000299,7]
[328671742,1717687846189,-155.96123981,0.000299,7]
[328671744,1717687846199,-155.96123981,0.000299,7]
[328671746,1717687846208,-155.96123981,0.000299,7]
[328671748,1717687846218,-156.46,0.000299,7]
[328671750,1717687846228,-623.91995923,0.000299,7]
[328671752,1717687846237,-623.91995923,0.000299,7]
[328671754,1717687846247,-174.4724755,0.000299,2]
[328671756,1717687846256,-623.91995923,0.000299,7]
[328671757,1717687846265,-37.65143489,0.000299,7]
[328671759,1717687846310,-586.26852434,0.000299,7]
[328671760,1717687846319,-317.54547566,0.000299,7]
[328671761,1717687846331,-306.37448357,0.000299,7]
[328671762,1717687846341,-558.01974564,0.000299,7]
[328671766,1717687849127,-500.0,0.00028492,4]
[328671768,1717687849137,-107.71542608,0.00028766,4]
[328671771,1717687849150,-577.02751537,0.00028766,4]
[328671773,1717687849162,-1371.03705855,0.00028766,4]
[328671775,1717687849173,-500.0,0.0002894,4]
[328671777,1717687849185,-500.0,0.00028999,4]
[328671779,1717687849195,-2055.78,0.0002904,4]
[328671781,1717687849204,-500.0,0.00029214,4]
[328671783,1717687849214,-500.0,0.00029273,4]
[328671785,1717687849224,-307.98294145,0.00029314,4]
[328671788,1717687849236,-576.72697962,0.00029314,4]
[328671790,1717687849248,-1171.07007893,0.00029314,4]
[328671792,1717687849258,-500.0,0.00029488,4]
[328671794,1717687849268,-500.0,0.00029547,4]
[328671796,1717687849279,-500.0,0.00029821,4]
[328671797,1717687849289,-65.90021359,0.000299,7]
[328671798,1717687849298,-623.91995923,0.000299,7]
[328671799,1717687849307,-623.91995923,0.000299,7]
[328671801,1717687849317,-623.91995923,0.000299,7]
[328671803,1717687849326,-623.91995923,0.000299,7]
[328671805,1717687849336,-623.91995923,0.000299,7]
[328671807,1717687849345,-623.91995923,0.000299,7]
[328671809,1717687849355,-623.91995923,0.000299,7]
[328671810,1717687849365,-623.91995923,0.000299,7]
[328671811,1717687849374,-142.35720052,0.000299,7]
[328671812,1717687849387,-458.11552598,0.000299,7]
[328671813,1717687849542,-23.44723273,0.000299,7]
[328671814,1717687849552,-623.91995923,0.000299,7]
[328671815,1717687849562,-623.91995923,0.000299,7]
[328671816,1717687849571,-623.91995923,0.000299,7]
[328671817,1717687849581,-623.91995923,0.000299,7]
[328671818,1717687849590,-624.41,0.000299,7]
[328671819,1717687849600,-186.3386123,0.000299,2]
[328671820,1717687849610,-153.32595174,0.00029909,2]
[328671821,1717687849619,-674.12554001,0.00029922,2]
[328671822,1717687849628,-166.66666667,0.0002993,2]
[328671823,1717687849638,-150.0,0.00029934,2]
[328671824,1717687849648,-168.28119332,0.00029941,2]
[328671825,1717687849657,-416.56365633,0.00029944,2]
[328671826,1717687849667,-154.19805681,0.00029952,2]
[328671827,1717687849678,-165.67010356,0.00029969,2]
[328671828,1717687849690,-4605.39676169,0.00029971,2]
[328671829,1717687849701,-155.15868932,0.00029972,2]
[328671830,1717687849713,-535.68575458,0.00029973,30]
[328671831,1717687849724,-546.8782186,0.00029986,2]
[328671832,1717687849734,-154.22504777,0.00029986,2]
[328671833,1717687849745,-674.12554001,0.00029986,2]
[328671834,1717687849755,-638.9653581,0.00029986,2]
[328671835,1717687849765,-230.2385381,0.00029986,2]
[328671836,1717687849775,-270.12885381,0.00029986,2]
[328671837,1717687849787,-1409.5,0.00029986,2]
[328671838,1717687849814,-553.56974129,0.00029588,4]
[328671839,1717687849826,-1502.21025871,0.00029588,4]
[328671840,1717687849835,-500.0,0.00029762,4]
[328671841,1717687849845,-3244.43071999,0.00029986,2]
[328671842,1717687849854,-153.32595174,0.00029989,2]
[328671844,1717687849864,-256.3,0.0002999,15]
[328671846,1717687849874,-245.24111866,0.00029998,2]
[328671848,1717687849884,-371.73196861,0.00029998,2]
[328671849,1717687849896,-134.28971717,0.00029998,2]
[328671850,1717687849906,-300.69557133,0.00029998,5]
[328671851,1717687849918,-346.76974357,0.00029998,5]
[328671852,1717687849927,-96.8650501,0.00029998,10]
[328671853,1717687849944,-611.967,0.00029998,10]
[328671854,1717687849955,-361.81700272,0.00029998,10]
[328671855,1717687849966,-302.524,0.00029998,10]
[328671856,1717687849979,-1768.66577003,0.00029998,10]
[328671857,1717687849990,-1789.34966613,0.00029998,10]
[328671858,1717687850002,-968.81151102,0.00029998,10]
[328671859,1717687850011,-852.82653246,0.00029998,2]
[328671860,1717687850024,-183.97791029,0.00029998,2]
[328671861,1717687850034,-5000.0,0.00029998,2]
[328671862,1717687850044,-416.56365633,0.00029998,2]
[328671863,1717687850054,-1980.08690757,0.00029998,2]
[328671864,1717687850063,-150.01,0.00029999,2]
[328671865,1717687850072,-389.40543072,0.00029999,2]
[328671866,1717687850082,-8579.72315569,0.0003,13]
[328671867,1717687850093,-12681.39029976,0.0003,13]
[328671868,1717687850103,-229.0,0.0003,5]
[328671869,1717687850112,-377458.36081144,0.0003,2]
[328671870,1717687850124,-469.30795553,0.0003,2]
[328671871,1717687850137,-37250.0,0.0003,2]
[328671872,1717687850148,-4247.25,0.0003,2]
[328671873,1717687850160,-1707.0,0.0003,2]
[328671875,1717688044302,40491.5795095,0.000118,2]
[328671876,1717688050994,13106.80311711,0.00011,2]
[328671877,1717688071799,-30000.0,0.00014,2]
[328671878,1717688383386,-3384.77160162,0.00013716,2]
[328671879,1717688383412,-705.538264,0.00013717,2]
[328671880,1717688383437,-173.26787482,0.000139,2]
[328671881,1717688383460,-1383.42225956,0.00013999,2]
[328671896,1717689032267,-756.27288357,0.00013759,2]
[328671897,1717689032280,-99.83823243,0.00013759,2]
[328671898,1717689032290,-453.0,0.00013829,2]
[328671899,1717689032300,-455.57295748,0.000139,2]
[328671900,1717689032314,-170.00019045,0.000139,2]
[328671901,1717689032325,-150.0,0.00013973,2]
[328671902,1717689032334,-151.86,0.0001399,2]
[328671903,1717689032343,-151.86,0.0001399,2]
[328671904,1717689032355,-471.870501,0.00013998,2]
[328671905,1717689032364,-78.1802717,0.00013998,2]
[328671906,1717689032376,-361.1097283,0.00013998,2]
[328671907,1717689032386,-3221.97450213,0.00013999,2]
[328671908,1717689032399,-38189.08713877,0.00013999,2]
[328671909,1717689032422,-5116.24183363,0.00013999,2]
[328671910,1717689032435,-364.78,0.00013999,2]
[328671911,1717689032449,-2149.02,0.00013999,2]
[328671955,1717689038056,-334.93843548,0.00013999,2]
[328671958,1717689038069,-502527.37403579,0.00013999,2]
[328671960,1717689038079,-345783.81943987,0.00014,2]
[328671967,1717689038169,-672.57950208,0.00014,2]
[328671968,1717689038181,-2880.41940265,0.00014,2]
[328671969,1717689038192,-2470.43890567,0.00014,2]
[328671970,1717689038204,-715.5495421,0.00014,2]
[328671971,1717689038216,-383.65,0.00014,2]
[328671972,1717689038227,-261.9,0.00014,2]
[328671973,1717689038239,-849.33,0.00014,2]
[328671974,1717689038251,-325.82,0.00014,2]
[328671975,1717689038271,-3176.34784179,0.00014,2]
[328671976,1717689038282,-19176.04095806,0.00014,2]
[328671977,1717689038300,-2022.7165844,0.00014,2]
[328672111,1717689040932,-71563.75217174,0.00014,2]
[328672128,1717689041116,-73943.39569701,0.00014,2]
[328672129,1717689041128,-4139.75197198,0.00014,2]
[328672132,1717689041153,-1819.25057202,0.00014,2]
[328672194,1717689042040,-3936.13,0.00014,2]
[328672195,1717689042101,-915.57267936,0.00014,2]
[328672196,1717689042113,-505.3,0.00014,2]
[328672197,1717689042124,-425.80000015,0.00014,2]
[328672198,1717689042221,-16260.31631,0.00014,2]
[328672199,1717689042233,-5507.7171,0.00014,2]
[328672211,1717689043332,-2800.15000001,0.00014,2]
[328672212,1717689043344,-6008.45779443,0.00014,2]
[328672213,1717689043362,-12589.94521892,0.00014,2]
[328672214,1717689043373,-26790.23101013,0.00014,2]
[328672215,1717689043384,-11522.69319487,0.00014,2]
[328672216,1717689043397,-1165.66493673,0.00014,2]
[328672217,1717689043434,-464.25,0.00014,2]
[328672218,1717689043445,-13107.32865499,0.00014,2]
[328672219,1717689043456,-1405.2,0.00014,2]
[328672220,1717689043471,-270.16216129,0.00014,2]
[328672221,1717689043666,-2785.58157408,0.00014,2]
[328672222,1717689043678,-27847.57188,0.00014,2]
[328672223,1717689043692,-6218.39108876,0.00014,2]
[328672251,1717689046103,-3847.6,0.00014,2]
[328672253,1717689046220,-714.41,0.00014,2]
[328672254,1717689046280,-500.0,0.00014,2]
[328672255,1717689046292,-20266.45882654,0.00014,2]
[328672256,1717689046304,-25024.85422961,0.00014,2]
[328672257,1717689046327,-3196.25694718,0.00014,2]
[328672258,1717689046349,-1567.830044,0.00014,2]
[328672259,1717689046363,-1938.14415443,0.00014,2]
[328672260,1717689046374,-646.1051255,0.00014,2]
[328672261,1717689046385,-14082.16063916,0.00014,2]
[328672262,1717689046397,-878.44492422,0.00014,2]
[328672263,1717689046413,-6682.25255547,0.00014,2]
[328672279,1717689126055,150.0,0.000105,2]
[328672280,1717689126081,2402.42616078,0.000105,2]
[328672281,1717689148028,150.0,0.000105,2]
[328672282,1717689148051,108.75422698,0.000105,2]
[328672283,1717689176889,-170.00019042,0.000139,2]
[328672284,1717689176914,-155.0,0.00013999,2]
[328672285,1717689176939,-181.00397603,0.00013999,2]
[328672286,1717689176966,-935108.1086587,0.00014,2]
[328672287,1717689176990,-346.62672627,0.00014,2]
[328672288,1717689177015,-20260.85855017,0.00014,2]
[328672289,1717689177041,-19769.39955785,0.00014,2]
[328672290,1717689177066,-13355.00234056,0.00014,2]
[328672291,1717689205228,-2856.0,0.00014,2]
[328672305,1717690232303,-177.17138992,0.00013899,2]
[328672306,1717690232313,-170.00019042,0.000139,2]
[328672307,1717690232323,-150.0,0.00013999,2]
[328672308,1717690232332,-3017.14790964,0.00013999,2]
[328672309,1717690232342,-3425.4469252,0.00014,2]
[328672310,1717690232354,-6000.0,0.00014,2]
[328672311,1717690232365,-4147.36848739,0.00014,2]
[328672312,1717690232415,-518897.62369052,0.00014,2]
[328672313,1717690232425,-620.58593424,0.00014,2]
[328672314,1717690232435,-24651.71873134,0.00014,2]
[328672315,1717690232446,-5386.50053306,0.00014,2]
[328672316,1717690232456,-8556.83391538,0.00014,2]
[328672317,1717690232465,-155.0,0.00014,2]
[328672318,1717690232474,-485.13297,0.00014,2]
[328672319,1717690232483,-485.13298,0.00019,2]
[328672320,1717690232493,-500.0,0.00019178,2]
[328672321,1717690232503,-500.0,0.00019178,2]
[328672322,1717690232512,-500.0,0.00019178,2]
[328672323,1717690232521,-516.25346607,0.00019178,2]
[328672324,1717690232531,-500.0,0.00019178,2]
[328672325,1717690232540,-500.0,0.00019178,2]
[328672326,1717690232550,-500.0,0.00019178,2]
[328672327,1717690232560,-499.99,0.00019452,2]
[328672328,1717690232569,-150.99,0.00019452,2]
[328672329,1717690232578,-908.93,0.00019452,2]
[328672330,1717690232588,-825.74,0.00019726,2]
[328672331,1717690232598,-1980.08690757,0.0002,2]
[328672332,1717690232608,-269.66,0.00020685,2]
[328672333,1717690232617,-11730.0,0.000214,5]
[328672334,1717690232627,-168.77,0.00021953,2]
[328672335,1717690232636,-250.0,0.0002215,2]
[328672336,1717690232645,-693.12,0.00022411,2]
[328672337,1717690232655,-1000.0,0.00022439,2]
[328672338,1717690232665,-317.91,0.00022445,2]
[328672339,1717690232676,-2177.42,0.00022505,2]
[328672340,1717690232688,-250.0,0.0002255,2]
[328672341,1717690232699,-5478.36,0.00022572,2]
[328672342,1717690232708,-250.0,0.0002259,2]
[328672343,1717690232719,-162.84,0.00022674,2]
[328672344,1717690232729,-285.52,0.00022804,2]
[328672345,1717690232738,-1336.19,0.00022865,2]
[328672346,1717690232748,-269.66,0.00022949,2]
[328672347,1717690232763,-198.19,0.00023986,2]
[328672348,1717690232772,-197.24,0.00023989,2]
[328672349,1717690232782,-201.39,0.00023994,2]
[328672350,1717690232791,-198.83,0.00023995,2]
[328672351,1717690232801,-549.09326146,0.00024,2]
[328672352,1717690232810,-485.13297,0.00024,2]
[328672353,1717690232820,-356.16,0.00024384,2]
[328672355,1717690232830,-202.88,0.00024384,2]
[328672357,1717690232839,-157.98,0.00024384,2]
[328672359,1717690232850,-1877.05611364,0.00024799,2]
[328672361,1717690232860,-1877.05611359,0.00024799,2]
[328672363,1717690232870,-1877.05611359,0.00024799,2]
[328672365,1717690232880,-1877.05611359,0.00024799,2]
[328672367,1717690232889,-1877.05611359,0.00024799,2]
[328672369,1717690232899,-1877.05611359,0.00024799,2]
[328672371,1717690232909,-1877.05611359,0.00024799,2]
[328672373,1717690232919,-800.0,0.00024959,2]
[328672375,1717690232928,-800.0,0.00024959,2]
[328672377,1717690232938,-174.0,0.0002497,15]
[328672379,1717690232949,-174.0,0.0002498,15]
[328672381,1717690232958,-174.0,0.0002499,15]
[328672383,1717690232967,-151.86,0.0002499,2]
[328672385,1717690232976,-524.82676745,0.00024998,2]
[328672387,1717690232986,-2682.57145036,0.00024998,2]
[328672389,1717690232995,-155.0,0.00024998,2]
[328672391,1717690233005,-207.79233236,0.00024998,10]
[328672393,1717690233015,-157.58676083,0.00024998,2]
[328672395,1717690233024,-155.0,0.00024998,2]
[328672397,1717690233034,-342.09828557,0.00024998,2]
[328672399,1717690233043,-4271.37805062,0.00024998,2]
[328672401,1717690233053,-517.92539232,0.00024998,2]
[328672403,1717690233063,-284.69704404,0.00024998,2]
[328672405,1717690233072,-542.37774006,0.00024998,2]
[328672407,1717690233081,-785.60612451,0.00024999,2]
[328672409,1717690233091,-3193.38572393,0.00024999,2]
[328672411,1717690233100,-706.05483356,0.00025,2]
[328672413,1717690233109,-336956.30694752,0.00025,2]
[328672416,1717690233127,-572.88213437,0.00025,2]
[328672418,1717690233139,-10698.30394,0.00025,2]
[328672420,1717690233150,-105377.98188287,0.00025,2]
[328672423,1717690233165,-70757.53766988,0.00025,2]
[328672438,1717690233329,-2407.76999996,0.00025,2]
[328672439,1717690233344,-6075.0,0.00025,2]
[328672440,1717690233358,-700.0,0.00025,2]
[328672441,1717690233373,-390543.91946388,0.00025,2]
[328672442,1717690233387,-6855.0,0.00025,2]
[328672443,1717690233401,-332396.4875833,0.00025,2]
[328672444,1717690233414,-100163.31223195,0.00025,2]
[328672445,1717690233424,-152.4807207,0.0002505,2]
[328672446,1717690233434,-693.12,0.0002515,2]
[328672447,1717690233447,-269.66,0.00025213,2]
[328672448,1717690233458,-1000.0,0.00025244,2]
[328672449,1717690233469,-1087.75156663,0.00026029,2]
[328672450,1717690233480,-1877.05611359,0.00026344,2]
[328672451,1717690233491,-152.0,0.00026711,3]
[328672452,1717690233503,-203.79,0.0002687,2]
[328672453,1717690233514,-199.252,0.00027363,2]
[328672454,1717690233526,-151.215,0.00027363,2]
[328672455,1717690233537,-500.0,0.00027397,4]
[328672456,1717690233548,-500.0,0.00027397,4]
[328672457,1717690233560,-500.0,0.00027397,4]
[328672458,1717690233572,-500.0,0.00027397,4]
[328672459,1717690233585,-500.0,0.00027397,4]
[328672460,1717690233596,-500.0,0.00027397,4]
[328672461,1717690233608,-500.0,0.00027397,4]
[328672462,1717690233620,-500.0,0.00027397,2]
[328672463,1717690233631,-500.0,0.00027397,4]
[328672464,1717690233641,-500.0,0.00027397,4]
[328672465,1717690233652,-496.23354386,0.00027397,4]
[328672466,1717690233663,-500.0,0.00027397,2]
[328672467,1717690233675,-500.0,0.00027397,4]
[328672468,1717690233689,-500.0,0.00027397,4]
[328672469,1717690233700,-355.85209455,0.00027397,4]
[328672470,1717690233712,-634.34704757,0.00027397,4]
[328672471,1717690233723,-500.0,0.00027397,4]
[328672472,1717690233734,-500.0,0.00027397,4]
[328672473,1717690233745,-305.2148778,0.00027397,4]
[328672474,1717690233759,-500.0,0.00027397,4]
[328672475,1717690233770,-500.0,0.00027397,4]
[328672476,1717690233781,-500.0,0.00027397,4]
[328672477,1717690233791,-500.0,0.00027397,4]
[328672478,1717690233801,-500.0,0.00027397,4]
[328672479,1717690233811,-500.0,0.00027397,4]
[328672480,1717690233821,-500.0,0.00027397,4]
[328672481,1717690233833,-537.82884172,0.00027397,4]
[328672482,1717690233843,-500.0,0.00027397,4]
[328672483,1717690233854,-500.0,0.00027397,4]
[328672484,1717690233866,-500.0,0.00027397,4]
[328672485,1717690233877,-500.0,0.00027397,4]
[328672486,1717690233888,-500.0,0.00027397,4]
[328672487,1717690233900,-561.30387377,0.00027397,4]
[328672488,1717690233911,-500.0,0.00027397,4]
[328672489,1717690233923,-500.0,0.00027397,4]
[328672490,1717690233934,-500.0,0.00027397,4]
[328672491,1717690233947,-500.0,0.00027397,4]
[328672492,1717690233958,-500.0,0.00027397,4]
[328672493,1717690233969,-500.0,0.00027397,4]
[328672494,1717690233980,-403.78649963,0.00027397,4]
[328672495,1717690233991,-500.0,0.00027397,4]
[328672496,1717690234001,-500.0,0.00027397,4]
[328672497,1717690234011,-500.0,0.00027397,4]
[328672498,1717690234021,-500.0,0.00027397,4]
[328672499,1717690234030,-500.0,0.00027397,4]
[328672500,1717690234040,-500.0,0.00027397,4]
[328672501,1717690234051,-500.0,0.00027397,4]
[328672502,1717690234062,-500.0,0.00027397,4]
[328672503,1717690234073,-500.0,0.00027397,4]
[328672504,1717690234084,-543.46376708,0.00027397,4]
[328672505,1717690234094,-500.0,0.00027397,4]
[328672506,1717690234105,-500.0,0.00027397,4]
[328672507,1717690234115,-500.0,0.00027397,4]
[328672508,1717690234127,-552.77800837,0.00027397,4]
[328672509,1717690234139,-500.0,0.00027397,4]
[328672510,1717690234148,-500.0,0.00027397,4]
[328672511,1717690234160,-500.0,0.00027397,4]
[328672512,1717690234170,-500.0,0.00027397,4]
[328672513,1717690234181,-500.0,0.00027397,4]
[328672514,1717690234195,-500.0,0.00027397,4]
[328672515,1717690234205,-500.0,0.00027397,4]
[328672516,1717690234215,-500.0,0.00027397,4]
[328672517,1717690234227,-346.349378,0.00027397,4]
[328672518,1717690234239,-500.0,0.00027397,4]
[328672519,1717690234250,-500.0,0.00027397,4]
[328672520,1717690234260,-500.0,0.00027397,4]
[328672521,1717690234271,-500.0,0.00027397,4]
[328672522,1717690234281,-500.0,0.00027397,4]
[328672523,1717690234292,-500.0,0.00027397,4]
[328672524,1717690234302,-500.0,0.00027397,4]
[328672525,1717690234312,-500.0,0.00027397,4]
[328672526,1717690234323,-500.0,0.00027397,4]
[328672527,1717690234333,-500.0,0.00027397,4]
[328672528,1717690234343,-500.0,0.00027397,4]
[328672529,1717690234354,-500.0,0.00027397,4]
[328672530,1717690234364,-500.0,0.00027397,4]
[328672531,1717690234376,-500.0,0.00027397,4]
[328672532,1717690234387,-500.0,0.00027397,4]
[328672533,1717690234398,-150.0,0.00027397,4]
[328672534,1717690234408,-500.0,0.00027397,4]
[328672535,1717690234418,-500.0,0.00027397,4]
[328672536,1717690234428,-500.0,0.00027397,4]
[328672537,1717690234439,-534.58,0.00027397,4]
[328672538,1717690234451,-498.5994,0.00027397,4]
[328672539,1717690234461,-500.0,0.00027397,4]
[328672540,1717690234471,-500.0,0.00027397,4]
[328672541,1717690234482,-500.0,0.00027397,4]
[328672542,1717690234491,-500.0,0.00027397,4]
[328672543,1717690234501,-500.0,0.00027397,4]
[328672544,1717690234511,-500.0,0.00027397,4]
[328672545,1717690234521,-500.0,0.00027397,4]
[328672546,1717690234532,-513.77,0.00027397,4]
[328672547,1717690234543,-500.0,0.00027397,4]
[328672548,1717690234554,-500.0,0.00027397,4]
[328672549,1717690234564,-500.0,0.00027397,4]
[328672550,1717690234575,-500.0,0.00027397,4]
[328672551,1717690234585,-500.0,0.00027397,4]
[328672552,1717690234596,-500.0,0.00027397,4]
[328672553,1717690234606,-500.0,0.00027397,4]
[328672554,1717690234617,-500.0,0.00027397,4]
[328672555,1717690234628,-500.0,0.00027397,4]
[328672556,1717690234639,-500.0,0.00027397,4]
[328672557,1717690234649,-500.0,0.00027397,4]
[328672558,1717690234659,-500.0,0.00027397,4]
[328672559,1717690234669,-500.0,0.00027397,4]
[328672560,1717690234684,-500.0,0.00027397,4]
[328672561,1717690234697,-500.0,0.00027397,4]
[328672562,1717690234708,-500.0,0.00027397,4]
[328672563,1717690234720,-588.58,0.00027397,4]
[328672564,1717690234731,-500.0,0.00027397,4]
[328672565,1717690234741,-500.0,0.00027397,4]
[328672566,1717690234752,-711.28,0.00027397,4]
[328672567,1717690234765,-42.87925508,0.00027397,4]
[328672592,1717690238338,-457.12074492,0.00027397,4]
[328672593,1717690238350,-415.30278235,0.00027397,4]
[328672594,1717690238364,-464.58898707,0.00027397,4]
[328672595,1717690238377,-61.78823058,0.00027397,4]
[328672596,1717690238388,-510.4,0.00027397,4]
[328672597,1717690238398,-500.0,0.00027397,4]
[328672598,1717690238410,-813.72,0.00027397,4]
[328672599,1717690238421,-735.93,0.00027397,4]
[328672600,1717690238432,-503.62,0.00027397,4]
[328672601,1717690238443,-500.0,0.00027397,4]
[328672602,1717690238454,-224.72550388,0.00027397,4]
[328672603,1717690238465,-500.0,0.00027397,4]
[328672604,1717690238476,-121.82422905,0.00027397,4]
[328672605,1717690238489,-378.17577095,0.00027397,4]
[328672606,1717690238500,-500.0,0.00027397,4]
[328672607,1717690238511,-500.0,0.00027397,4]
[328672608,1717690238522,-500.0,0.00027397,4]
[328672609,1717690238532,-261.65497872,0.00027397,4]
[328672610,1717690238546,-238.34502128,0.00027397,4]
[328672611,1717690238556,-500.0,0.00027397,4]
[328672612,1717690238567,-500.0,0.00027397,4]
[328672613,1717690238578,-724.47,0.00027397,4]
[328672614,1717690238589,-500.0,0.00027397,4]
[328672615,1717690238599,-565.96060309,0.00027397,4]
[328672616,1717690238610,-506.29015298,0.00027397,4]
[328672617,1717690238620,-500.0,0.00027397,4]
[328672618,1717690238631,-500.0,0.00027397,4]
[328672619,1717690238642,-500.0,0.00027397,4]
[328672620,1717690238652,-500.0,0.00027397,4]
[328672621,1717690238662,-500.0,0.00027397,4]
[328672622,1717690238675,-500.0,0.00027397,4]
[328672623,1717690238689,-990.45,0.00027397,4]
[328672624,1717690238699,-500.0,0.00027397,4]
[328672625,1717690238709,-1073.26,0.00027397,4]
[328672626,1717690238720,-500.0,0.00027397,4]
[328672627,1717690238730,-500.0,0.00027397,4]
[328672628,1717690238740,-500.0,0.00027397,4]
[328672629,1717690238752,-606.04,0.00027397,4]
[328672630,1717690238763,-1067.38,0.00027397,4]
[328672631,1717690238773,-500.0,0.00027397,4]
[328672632,1717690238783,-884.85,0.00027397,4]
[328672634,1717690238793,-581.85,0.00027397,4]
[328672636,1717690238803,-1056.24,0.00027397,4]
[328672638,1717690238814,-500.0,0.00027397,4]
[328672640,1717690238824,-355.80638713,0.00027397,4]
[328672642,1717690238835,-751.58,0.00027397,4]
[328672657,1717690239116,-500.0,0.00027397,4]
[328672658,1717690239133,-500.0,0.00027397,4]
[328672659,1717690239153,-1025.31,0.00027397,4]